fUSD/lending_fUSD_20251217
["ID","MTS","AMOUNT","RATE_DAILY","PERIOD"]
[398921956,1765998643550,-500.0,0.00018068,2]
[398921957,1765998643560,-500.0,0.00018068,2]
[398921958,1765998643570,-766.8433042,0.00018068,2]
[398921959,1765998643583,-1500.0,0.00018068,2]
[398921960,1765998643593,-1000.0,0.00018068,2]
[398921961,1765998643604,-1000.0,0.00018068,2]
[398921962,1765998643615,-946.79619718,0.00018068,2]
[398921963,1765998643624,-500.0,0.00018082,6]
[398921964,1765998643634,-1000.0,0.00018082,2]
[398921965,1765998643644,-193.33171338,0.00018115,2]
[398921966,1765998643654,-574.12855637,0.00018153,2]
[398921967,1765998643663,-2345.0,0.00018153,2]
[398921968,1765998643673,-1600.0,0.00018266,2]
[398921969,1765998643812,-200.0,0.00018287,2]
[398921970,1765998643823,-7000.0,0.000183,2]
[398921971,1765998643832,-823.0,0.00018354,2]
[398921972,1765998643841,-500.0,0.00018356,7]
[398921973,1765998643852,-311.1,0.00018426,2]
[398921974,1765998643861,-151.0,0.00018426,2]
[398921975,1765998643871,-212.1,0.00018482,2]
[398921976,1765998643879,-2000.0,0.0001859,2]
[398921977,1765998643889,-2000.0,0.0001859,2]
[398921978,1765998643898,-2000.0,0.0001859,2]
[398921979,1765998643908,-676.041,0.0001859,2]
[398921980,1765998643918,-823.42,0.00018616,2]
[398921981,1765998643928,-1893.52233492,0.00018616,2]
[398921982,1765998643937,-1149.79191981,0.00018616,2]
[398921983,1765998643946,-500.0,0.0001863,8]
[398921984,1765998643955,-283.39683818,0.00018701,2]
[398921985,1765998643965,-1000.0,0.0001876,2]
[398921986,1765998643974,-1000.0,0.00018772,2]
[398921987,1765998643983,-500.0,0.00018773,2]
[398921988,1765998643992,-187.10375317,0.00018773,2]
[398921989,1765998644002,-270.30071685,0.00018773,2]
[398921990,1765998644011,-500.0,0.00018773,2]
[398921991,1765998644021,-500.0,0.00018773,2]
[398921992,1765998644030,-500.0,0.00018773,2]
[398921993,1765998644040,-440.9809591,0.00018773,2]
[398921994,1765998644049,-322.88830232,0.00018773,2]
[398921995,1765998644059,-13296.18727066,0.00018777,2]
[398921996,1765998644068,-9523.83814419,0.00018778,2]
[398921997,1765998644077,-150.91,0.000188,2]
[398921998,1765998644086,-150.91,0.000188,2]
[398921999,1765998644096,-500.0,0.00018904,9]
[398922000,1765998644106,-261.0,0.0001898,2]
[398922001,1765998644115,-627.97472388,0.00019,2]
[398922002,1765998644124,-300.0,0.00019,2]
[398922003,1765998644134,-334.86,0.00019067,2]
[398922004,1765998644143,-604.64,0.00019178,10]
[398922005,1765998644152,-212.1,0.00019221,2]
[398922006,1765998644161,-1000.0,0.00019321,2]
[398922007,1765998644170,-1000.0,0.00019321,2]
[398922008,1765998644179,-1000.0,0.00019321,2]
[398922009,1765998644189,-1000.0,0.00019321,2]
[398922010,1765998644198,-1000.0,0.00019438,2]
[398922011,1765998644207,-1806.07763121,0.00019471,2]
[398922012,1765998644217,-215.0738,0.0001953,2]
[398922013,1765998644226,-111085.05395839,0.0001967,2]
[398922014,1765998644235,-200.0,0.00019708,2]
[398922015,1765998644244,-322.6107,0.00019795,2]
[398922016,1765998644253,-667.42772658,0.00019796,2]
[398922017,1765998644262,-151.0,0.00019868,2]
[398922018,1765998644271,-151.0,0.00019868,2]
[398922019,1765998644280,-151.0,0.00019868,2]
[398922020,1765998644289,-151.0,0.00019868,2]
[398922021,1765998644298,-151.0,0.00019868,2]
[398922022,1765998644306,-154.787484,0.00019868,2]
[398922023,1765998644315,-151.0,0.00019868,2]
[398922024,1765998644324,-225.844093,0.00019868,2]
[398922025,1765998644333,-225.844093,0.00019868,2]
[398922026,1765998644343,-225.844093,0.00019868,2]
[398922027,1765998644355,-225.844093,0.00019868,2]
[398922028,1765998644365,-180.561774,0.00019868,2]
[398922029,1765998644374,-180.561774,0.00019868,2]
[398922030,1765998644385,-180.561774,0.00019868,2]
[398922031,1765998644394,-180.561774,0.00019868,2]
[398922032,1765998644403,-151.0,0.00019868,2]
[398922033,1765998644412,-823.42,0.00019868,2]
[398922034,1765998644423,-151.0,0.00019868,2]
[398922035,1765998644432,-172.496934,0.00019868,2]
[398922036,1765998644441,-151.0,0.00019868,2]
[398922037,1765998644450,-151.0,0.00019868,2]
[398922038,1765998644460,-243.020018,0.00019868,2]
[398922039,1765998644469,-243.020018,0.00019868,2]
[398922040,1765998644478,-243.020018,0.00019868,2]
[398922041,1765998644487,-243.020018,0.00019868,2]
[398922042,1765998644496,-415.23028169,0.00019868,2]
[398922043,1765998644505,-832.73871047,0.00019882,2]
[398922044,1765998644514,-151.12198165,0.00019902,2]
[398922045,1765998644523,-1600.0,0.00019926,2]
[398922046,1765998644533,-212.1,0.0001996,2]
[398922047,1765998644542,-13296.18727066,0.00019981,2]
[398922048,1765998644550,-9523.83814419,0.00019982,2]
[398922049,1765998644559,-500.0,0.00019999,2]
[398922050,1765998644568,-4000.0,0.0002,2]
[398922051,1765998644578,-216.77594334,0.0002,7]
[398922052,1765998644588,-5001.92321536,0.0002,2]
[398922053,1765998644597,-188.59099171,0.0002,20]
[398922054,1765998644607,-150.0,0.000201,7]
[398922055,1765998644616,-1152.0,0.00020108,2]
[398922056,1765998644625,-157.63541269,0.00020116,2]
[398922057,1765998644634,-1000.0,0.00020116,2]
[398922058,1765998644643,-563.84,0.00020187,2]
[398922059,1765998644652,-153.26,0.00020251,2]
[398922060,1765998644661,-1000.0,0.00020479,2]
[398922061,1765998644671,-2000.0,0.000207,2]
[398922062,1765998644680,-1000.0,0.00020795,2]
[398922063,1765998644690,-334.86,0.00020852,2]
[398922064,1765998644699,-350.0,0.00021,2]
[398922065,1765998644708,-500.0,0.00021123,2]
[398922066,1765998644717,-334.5472959,0.00021164,2]
[398922067,1765998644726,-334.3868092,0.00021173,14]
[398922068,1765998644735,-13296.18727066,0.00021186,2]
[398922069,1765998644744,-9523.83814419,0.00021187,2]
[398922070,1765998644754,-500.0,0.00021452,2]
[398922071,1765998644763,-942.0,0.000216,2]
[398922072,1765998644772,-500.0,0.00021653,2]
[398922073,1765998644782,-500.0,0.00021654,2]
[398922074,1765998644791,-500.0,0.00021655,2]
[398922075,1765998644800,-499.9999,0.00021656,2]
[398922076,1765998644809,-5000.0,0.00021918,2]
[398922077,1765998644818,-151.0,0.00021918,2]
[398922078,1765998644827,-151.0,0.00021918,2]
[398922079,1765998644836,-151.0,0.00021918,2]
[398922080,1765998644844,-151.0,0.00021918,2]
[398922081,1765998644855,-500.0,0.00021918,2]
[398922082,1765998644864,-4126.59468173,0.00022,2]
[398922083,1765998644873,-7576.7204612,0.00022,15]
[398922084,1765998644884,-163.53,0.00022,2]
[398922085,1765998644893,-255.01598989,0.00022,2]
[398922086,1765998644903,-1680.76,0.00022,7]
[398922087,1765998644911,-1613.0,0.00022031,2]
[398922088,1765998644919,-1000.0,0.00022192,2]
[398922089,1765998644928,-223.0315306,0.00022269,2]
[398922090,1765998644937,-2046.94753658,0.00022276,2]
[398922091,1765998644947,-220.24160974,0.00022291,2]
[398922092,1765998644955,-150.0,0.00022315,2]
[398922093,1765998644964,-150.00000001,0.00022315,2]
[398922094,1765998644974,-150.0,0.00022315,2]
[398922095,1765998644984,-150.0,0.00022315,2]
[398922097,1765998644993,-150.0,0.00022315,2]
[398922098,1765998645003,-150.0,0.00022315,2]
[398922099,1765998645012,-150.0,0.00022315,2]
[398922100,1765998645022,-150.0,0.00022315,2]
[398922101,1765998645031,-150.0,0.00022315,2]
[398922102,1765998645040,-150.0,0.00022315,2]
[398922104,1765998645049,-150.0,0.00022315,2]
[398922105,1765998645059,-150.0,0.00022315,2]
[398922106,1765998645068,-150.0,0.00022315,2]
[398922107,1765998645077,-150.0,0.00022315,2]
[398922108,1765998645087,-150.0,0.00022315,2]
[398922109,1765998645096,-150.0,0.00022347,4]
[398922110,1765998645108,-150.0,0.00022355,4]
[398922111,1765998645117,-150.0,0.0002236,4]
[398922112,1765998645127,-150.0,0.00022373,4]
[398922113,1765998645136,-150.0,0.00022373,4]
[398922114,1765998645145,-150.0,0.00022376,4]
[398922115,1765998645155,-150.0,0.00022379,4]
[398922117,1765998645165,-13296.18727066,0.00022391,2]
[398922119,1765998645174,-9523.83814419,0.00022391,2]
[398922121,1765998645184,-150.0,0.00022393,4]
[398922123,1765998645193,-150.0,0.00022395,4]
[398922125,1765998645202,-150.0,0.00022405,4]
[398922127,1765998645211,-150.0,0.00022412,4]
[398922129,1765998645220,-150.0,0.0002243,4]
[398922131,1765998645228,-150.0,0.0002243,4]
[398922133,1765998645238,-150.0,0.00022435,4]
[398922135,1765998645247,-150.0,0.00022436,4]
[398922137,1765998645256,-150.0,0.00022444,4]
[398922139,1765998645267,-150.0,0.00022446,4]
[398922141,1765998645276,-150.0,0.0002245,4]
[398922142,1765998645285,-150.0,0.0002247,4]
[398922143,1765998645294,-150.0,0.00022475,4]
[398922144,1765998645303,-150.0,0.00022476,4]
[398922145,1765998645312,-151.0,0.00022477,2]
[398922146,1765998645322,-15167.57750663,0.0002248,2]
[398922147,1765998645331,-150.0,0.00022488,4]
[398922148,1765998645344,-150.0,0.00022488,4]
[398922149,1765998645356,-150.0,0.00022492,4]
[398922150,1765998645366,-150.0,0.00022495,4]
[398922152,1765998645375,-150.0,0.00022496,4]
[398922154,1765998645386,-150.0,0.00022506,4]
[398922156,1765998645395,-150.0,0.00022508,4]
[398922157,1765998645404,-150.0,0.00022515,4]
[398922158,1765998645413,-150.0,0.00022522,4]
[398922159,1765998645423,-346.92554585,0.00022533,2]
[398922161,1765998645432,-150.0,0.0002254,4]
[398922162,1765998645442,-150.0,0.0002254,4]
[398922163,1765998645451,-150.0,0.00022546,4]
[398922164,1765998645460,-150.0,0.00022546,4]
[398922165,1765998645469,-150.0,0.00022548,4]
[398922166,1765998645478,-150.0,0.00022555,4]
[398922167,1765998645487,-150.0,0.00022557,4]
[398922168,1765998645496,-150.0,0.00022573,4]
[398922169,1765998645506,-150.0,0.00022576,4]
[398922170,1765998645515,-150.0,0.00022586,4]
[398922171,1765998645524,-150.0,0.00022595,4]
[398922172,1765998645534,-150.0,0.00022603,4]
[398922173,1765998645543,-150.0,0.00022603,4]
[398922174,1765998645552,-150.0,0.00022605,4]
[398922175,1765998645561,-360.17,0.00022607,14]
[398922176,1765998645571,-150.0,0.00022617,4]
[398922177,1765998645580,-150.0,0.00022625,4]
[398922178,1765998645590,-150.0,0.00022631,4]
[398922179,1765998645599,-150.0,0.00022635,4]
[398922180,1765998645608,-150.0,0.00022637,4]
[398922181,1765998645618,-150.0,0.00022661,4]
[398922182,1765998645627,-150.0,0.00022661,4]
[398922183,1765998645637,-150.0,0.00022669,4]
[398922184,1765998645646,-150.0,0.00022669,4]
[398922185,1765998645656,-150.0,0.00022675,4]
[398922186,1765998645665,-150.0,0.00022676,4]
[398922187,1765998645675,-150.0,0.00022678,4]
[398922188,1765998645684,-223.24,0.00022685,2]
[398922189,1765998645694,-150.0,0.00022697,4]
[398922190,1765998645703,-150.0,0.00022701,4]
[398922191,1765998645713,-150.0,0.00022702,4]
[398922192,1765998645722,-150.0,0.00022707,4]
[398922193,1765998645731,-150.0,0.00022715,4]
[398922194,1765998645740,-150.0,0.00022719,4]
[398922195,1765998645749,-150.0,0.00022719,4]
[398922196,1765998645758,-150.0,0.00022721,4]
[398922197,1765998645769,-150.0,0.00022726,60]
[398922198,1765998645778,-150.0,0.00022726,60]
[398922199,1765998645787,-153.30440339,0.00022726,60]
[398922200,1765998645796,-150.0,0.00022726,60]
[398922201,1765998645805,-150.0,0.00022726,60]
[398922202,1765998645814,-577.0,0.00022726,60]
[398922203,1765998645822,-256.96660006,0.00022726,60]
[398922204,1765998645831,-150.0,0.00022726,60]
[398922205,1765998645840,-150.0,0.00022726,60]
[398922206,1765998645849,-500.0,0.00022726,60]
[398922207,1765998645861,-150.0,0.00022726,60]
[398922208,1765998645871,-500.0,0.00022726,60]
[398922209,1765998645880,-500.0,0.00022726,60]
[398922210,1765998645889,-150.0,0.00022726,60]
[398922211,1765998645899,-150.0,0.00022726,2]
[398922213,1765998645908,-500.0,0.00022726,14]
[398922214,1765998645917,-150.0,0.00022726,60]
[398922216,1765998645926,-150.0,0.00022726,2]
[398922218,1765998645935,-500.0,0.00022726,7]
[398922219,1765998645944,-150.0,0.00022726,60]
[398922220,1765998645953,-150.0,0.00022726,60]
[398922221,1765998645962,-150.0,0.00022726,60]
[398922222,1765998645971,-150.0,0.00022726,2]
[398922223,1765998645979,-157.61215021,0.00022726,60]
[398922224,1765998645988,-150.0,0.00022728,4]
[398922225,1765998645997,-150.0,0.00022728,4]
[398922226,1765998646006,-223.24,0.00022732,2]
[398922227,1765998646015,-150.0,0.00022734,4]
[398922228,1765998646023,-150.0,0.00022738,4]
[398922229,1765998646032,-150.0,0.00022755,4]
[398922230,1765998646041,-150.0,0.00022766,4]
[398922231,1765998646051,-150.0,0.00022766,4]
[398922232,1765998646060,-150.0,0.00022776,4]
[398922235,1765998646069,-150.0,0.00022776,4]
[398922237,1765998646079,-150.0,0.0002278,4]
[398922239,1765998646087,-150.0,0.00022795,4]
[398922241,1765998646097,-150.0,0.00022798,4]
[398922243,1765998646108,-150.0,0.00022799,4]
[398922245,1765998646116,-150.0,0.00022811,4]
[398922246,1765998646125,-150.0,0.0002283,4]
[398922248,1765998646134,-150.0,0.00022834,4]
[398922250,1765998646143,-150.0,0.00022834,4]
[398922252,1765998646153,-150.0,0.00022835,4]
[398922254,1765998646162,-150.0,0.00022837,4]
[398922256,1765998646171,-150.0,0.00022846,4]
[398922258,1765998646180,-150.0,0.00022856,4]
[398922260,1765998646189,-150.0,0.00022857,4]
[398922262,1765998646199,-150.0,0.00022859,4]
[398922264,1765998646208,-150.0,0.00022862,4]
[398922265,1765998646216,-150.0,0.00022863,60]
[398922267,1765998646226,-150.0,0.00022863,60]
[398922269,1765998646235,-150.0,0.00022863,60]
[398922271,1765998646244,-577.0,0.00022863,60]
[398922273,1765998646254,-150.0,0.00022863,60]
[398922275,1765998646263,-150.0,0.00022863,60]
[398922277,1765998646272,-500.0,0.00022863,60]
[398922279,1765998646281,-150.0,0.00022863,60]
[398922281,1765998646291,-500.0,0.00022863,60]
[398922283,1765998646300,-500.0,0.00022863,60]
[398922284,1765998646309,-150.0,0.00022863,60]
[398922286,1765998646318,-500.0,0.00022863,14]
[398922288,1765998646327,-150.0,0.00022863,2]
[398922290,1765998646336,-500.0,0.00022863,7]
[398922292,1765998646345,-150.0,0.00022863,60]
[398922293,1765998646360,-150.0,0.00022863,60]
[398922294,1765998646369,-150.0,0.00022863,2]
[398922295,1765998646378,-150.0,0.00022875,4]
[398922296,1765998646386,-150.0,0.00022887,4]
[398922297,1765998646397,-150.0,0.00022892,4]
[398922298,1765998646406,-150.0,0.00022892,4]
[398922299,1765998646416,-150.0,0.00022895,4]
[398922300,1765998646427,-150.0,0.00022901,4]
[398922301,1765998646436,-150.0,0.00022915,4]
[398922302,1765998646445,-150.0,0.0002292,4]
[398922303,1765998646454,-150.0,0.00022927,4]
[398922304,1765998646463,-150.0,0.00022935,4]
[398922305,1765998646472,-150.0,0.00022935,4]
[398922307,1765998646481,-150.0,0.00022946,4]
[398922309,1765998646490,-150.0,0.00022949,4]
[398922311,1765998646499,-150.0,0.00022949,4]
[398922313,1765998646509,-2297.01,0.00022953,2]
[398922315,1765998646518,-150.0,0.00022955,4]
[398922317,1765998646527,-150.0,0.00022959,4]
[398922319,1765998646537,-150.0,0.00022968,4]
[398922320,1765998646547,-150.0,0.0002298,4]
[398922322,1765998646556,-150.0,0.00022991,4]
[398922324,1765998646565,-150.0,0.00022991,4]
[398922326,1765998646573,-150.0,0.00022995,4]
[398922328,1765998646583,-150.0,0.00023,60]
[398922330,1765998646592,-577.0,0.00023,60]
[398922332,1765998646602,-500.0,0.00023,60]
[398922333,1765998646612,-150.0,0.00023,60]
[398922334,1765998646621,-500.0,0.00023,60]
[398922335,1765998646630,-450.0,0.00023,60]
[398922336,1765998646639,-150.0,0.00023,60]
[398922337,1765998646648,-500.0,0.00023,14]
[398922338,1765998646657,-150.0,0.00023,2]
[398922339,1765998646667,-500.0,0.00023,7]
[398922340,1765998646676,-150.0,0.00023,60]
[398922341,1765998646685,-200.0,0.00023,60]
[398922342,1765998646694,-150.0,0.00023,2]
[398922343,1765998646704,-177.45799748,0.00023,2]
[398922344,1765998646713,-150.0,0.00023007,4]
[398922345,1765998646722,-150.0,0.00023007,4]
[398922346,1765998646731,-150.0,0.00023012,4]
[398922347,1765998646741,-150.0,0.00023023,4]
[398922348,1765998646750,-150.0,0.00023023,4]
[398922349,1765998646759,-150.0,0.00023035,4]
[398922350,1765998646768,-150.0,0.00023036,4]
[398922351,1765998646777,-150.0,0.00023041,4]
[398922352,1765998646786,-150.0,0.00023056,4]
[398922353,1765998646795,-150.0,0.00023065,4]
[398922354,1765998646804,-150.0,0.00023065,4]
[398922355,1765998646813,-150.0,0.00023075,4]
[398922356,1765998646822,-150.0,0.00023078,4]
[398922357,1765998646831,-150.0,0.00023081,4]
[398922358,1765998646842,-150.0,0.00023088,4]
[398922359,1765998646851,-150.0,0.0002309,4]
[398922360,1765998646860,-150.0,0.00023098,4]
[398922361,1765998646869,-150.0,0.00023101,4]
[398922362,1765998646879,-150.0,0.00023115,4]
[398922363,1765998646889,-150.0,0.0002312,4]
[398922364,1765998646898,-150.0,0.00023122,4]
[398922365,1765998646908,-150.0,0.00023122,4]
[398922366,1765998646918,-150.0,0.00023127,4]
[398922367,1765998646928,-150.0,0.00023137,60]
[398922368,1765998646938,-577.0,0.00023137,60]
[398922369,1765998646948,-500.0,0.00023137,60]
[398922370,1765998646958,-150.0,0.00023137,60]
[398922371,1765998646968,-500.0,0.00023137,60]
[398922372,1765998646978,-500.0,0.00023137,14]
[398922373,1765998646987,-321.81530924,0.00023137,7]
[398922374,1765998646997,-200.0,0.00023137,60]
[398922375,1765998647007,-257.10428919,0.00023137,60]
[398922376,1765998647016,-150.0,0.00023137,2]
[398922377,1765998647025,-150.0,0.00023142,4]
[398922378,1765998647035,-150.0,0.00023142,4]
[398922379,1765998647045,-150.0,0.00023142,4]
[398922380,1765998647056,-150.0,0.00023152,4]
[398922381,1765998647067,-150.0,0.00023155,4]
[398922382,1765998647077,-150.0,0.00023162,4]
[398922383,1765998647088,-150.0,0.00023167,4]
[398922384,1765998647097,-150.0,0.00023172,4]
[398922385,1765998647109,-150.0,0.0002318,4]
[398922386,1765998647118,-150.0,0.0002318,4]
[398922387,1765998647128,-150.0,0.00023184,4]
[398922388,1765998647137,-150.0,0.00023195,4]
[398922389,1765998647147,-150.0,0.00023201,4]
[398922390,1765998647157,-150.0,0.00023217,4]
[398922391,1765998647167,-150.0,0.00023217,4]
[398922392,1765998647176,-150.0,0.00023222,4]
[398922393,1765998647186,-150.0,0.00023229,4]
[398922394,1765998647196,-150.0,0.00023235,4]
[398922395,1765998647206,-150.0,0.00023238,4]
[398922396,1765998647215,-150.0,0.00023238,4]
[398922397,1765998647225,-150.0,0.00023245,4]
[398922398,1765998647235,-150.0,0.00023249,4]
[398922399,1765998647244,-150.0,0.00023262,4]
[398922400,1765998647254,-150.0,0.00023269,4]
[398922401,1765998647263,-150.0,0.00023274,60]
[398922402,1765998647273,-577.0,0.00023274,60]
[398922403,1765998647283,-150.0,0.00023274,60]
[398922404,1765998647292,-500.0,0.00023274,60]
[398922405,1765998647302,-500.0,0.00023274,14]
[398922406,1765998647311,-150.0,0.00023274,2]
[398922407,1765998647321,-150.0,0.00023275,4]
[398922408,1765998647330,-150.0,0.00023281,4]
[398922409,1765998647343,-150.0,0.00023283,4]
[398922410,1765998647353,-150.0,0.00023295,4]
[398922411,1765998647362,-150.0,0.00023295,4]
[398922412,1765998647372,-150.0,0.00023307,4]
[398922413,1765998647383,-150.0,0.00023313,4]
[398922414,1765998647393,-150.0,0.00023315,4]
[398922415,1765998647403,-150.0,0.00023322,4]
[398922416,1765998647413,-150.0,0.00023343,4]
[398922417,1765998647423,-150.0,0.00023345,4]
[398922418,1765998647432,-150.0,0.00023348,4]
[398922419,1765998647442,-150.0,0.00023352,4]
[398922420,1765998647451,-150.0,0.00023353,4]
[398922421,1765998647461,-150.0,0.00023353,4]
[398922422,1765998647471,-150.0,0.00023355,4]
[398922423,1765998647480,-150.0,0.00023359,4]
[398922424,1765998647490,-150.0,0.00023378,4]
[398922425,1765998647500,-150.0,0.00023378,4]
[398922426,1765998647510,-150.0,0.00023395,4]
[398922427,1765998647520,-150.0,0.00023397,4]
[398922428,1765998647528,-150.0,0.000234,4]
[398922429,1765998647538,-150.0,0.00023404,4]
[398922430,1765998647548,-150.0,0.0002341,4]
[398922431,1765998647558,-150.0,0.00023411,4]
[398922432,1765998647568,-150.0,0.00023411,4]
[398922433,1765998647578,-250.0,0.00023411,60]
[398922434,1765998647588,-577.0,0.00023411,60]
[398922435,1765998647598,-250.0,0.00023411,60]
[398922436,1765998647609,-500.0,0.00023411,60]
[398922437,1765998647619,-351.44474318,0.00023411,14]
[398922438,1765998647630,-250.0,0.00023411,2]
[398922439,1765998647639,-150.0,0.00023435,4]
[398922440,1765998647649,-150.0,0.00023442,4]
[398922441,1765998647659,-150.0,0.00023442,4]
[398922442,1765998647670,-150.0,0.00023459,4]
[398922443,1765998647680,-150.0,0.00023464,4]
[398922444,1765998647690,-150.0,0.00023468,4]
[398922445,1765998647700,-150.0,0.00023468,4]
[398922446,1765998647710,-150.0,0.00023474,4]
[398922447,1765998647721,-150.0,0.00023475,4]
[398922448,1765998647730,-150.0,0.00023477,4]
[398922449,1765998647740,-150.0,0.00023487,4]
[398922450,1765998647750,-150.0,0.0002349,4]
[398922451,1765998647760,-150.0,0.00023506,4]
[398922452,1765998647770,-150.0,0.00023515,4]
[398922453,1765998647780,-150.0,0.00023525,4]
[398922454,1765998647789,-150.0,0.00023526,4]
[398922455,1765998647799,-150.0,0.00023526,4]
[398922456,1765998647809,-150.0,0.00023532,4]
[398922457,1765998647819,-150.0,0.00023539,4]
[398922458,1765998647829,-577.0,0.00023548,60]
[398922459,1765998647838,-500.0,0.00023548,60]
[398922460,1765998647848,-150.0,0.00023555,4]
[398922461,1765998647860,-150.0,0.00023555,4]
[398922462,1765998647869,-150.0,0.00023555,4]
[398922463,1765998647879,-150.0,0.00023555,4]
[398922464,1765998647888,-150.0,0.00023555,4]
[398922465,1765998647898,-150.0,0.00023555,4]
[398922466,1765998647907,-150.0,0.00023571,4]
[398922467,1765998647917,-150.0,0.00023577,4]
[398922468,1765998647928,-150.0,0.00023584,4]
[398922469,1765998647937,-150.0,0.00023584,4]
[398922470,1765998647948,-150.0,0.00023585,4]
[398922471,1765998647958,-150.0,0.00023595,4]
[398922472,1765998647968,-13296.18727066,0.00023595,2]
[398922473,1765998647977,-9523.83814419,0.00023596,2]
[398922474,1765998647988,-150.0,0.00023603,4]
[398922475,1765998647997,-150.0,0.0002362,4]
[398922476,1765998648007,-150.0,0.00023622,4]
[398922477,1765998648016,-150.0,0.00023632,4]
[398922478,1765998648026,-150.0,0.00023635,4]
[398922479,1765998648036,-150.0,0.00023635,4]
[398922480,1765998648045,-150.0,0.00023641,4]
[398922481,1765998648055,-150.0,0.00023641,4]
[398922482,1765998648065,-150.0,0.00023646,4]
[398922483,1765998648075,-150.0,0.0002365,4]
[398922484,1765998648086,-150.0,0.00023667,4]
[398922485,1765998648096,-150.0,0.00023667,4]
[398922486,1765998648109,-150.0,0.00023675,4]
[398922487,1765998648120,-577.0,0.00023685,60]
[398922488,1765998648132,-500.0,0.00023685,60]
[398922489,1765998648142,-150.0,0.00023699,4]
[398922490,1765998648153,-150.0,0.00023699,4]
[398922491,1765998648163,-150.0,0.000237,4]
[398922492,1765998648174,-150.0,0.00023706,4]
[398922493,1765998648184,-1814.22114664,0.00023707,2]
[398922494,1765998648194,-150.0,0.0002371,4]
[398922495,1765998648204,-150.0,0.00023713,4]
[398922496,1765998648214,-150.0,0.00023715,4]
[398922497,1765998648223,-152.0,0.00023717,2]
[398922498,1765998648233,-152.0,0.00023717,2]
[398922499,1765998648243,-835.0,0.00023717,2]
[398922500,1765998648254,-152.0,0.00023717,2]
[398922501,1765998648264,-1254.0,0.00023717,2]
[398922502,1765998648274,-152.0,0.00023717,2]
[398922503,1765998648284,-152.0,0.00023717,2]
[398922504,1765998648294,-835.0,0.00023717,2]
[398922505,1765998648304,-1254.0,0.00023717,2]
[398922506,1765998648313,-152.0,0.00023717,2]
[398922507,1765998648322,-152.0,0.00023717,2]
[398922508,1765998648333,-835.0,0.00023717,2]
[398922509,1765998648346,-152.0,0.00023717,2]
[398922510,1765998648361,-835.0,0.00023717,2]
[398922511,1765998648371,-1254.0,0.00023717,2]
[398922512,1765998648382,-152.0,0.00023717,2]
[398922513,1765998648393,-152.0,0.00023717,2]
[398922514,1765998648403,-835.0,0.00023717,2]
[398922515,1765998648413,-1254.0,0.00023717,2]
[398922516,1765998648424,-152.0,0.00023717,2]
[398922517,1765998648434,-152.0,0.00023717,2]
[398922518,1765998648444,-835.0,0.00023717,2]
[398922519,1765998648455,-1254.0,0.00023717,2]